bitfinex/quotes_ETHUSD_20250519
["timestamp","ask_amount","ask_price","bid_price","bid_amount"]
[1747667061304,4.07988171,2451.1,2450.6,4.0805257]
[1747667061494,4.07964821,2451.2,2450.7,4.08039712]
[1747667061833,4.07988582,2451.1,2450.6,4.08055248]
[1747667062044,4.0800567,2451.0,2450.7,0.48922525]
[1747667062212,4.07988858,2451.1,2450.7,0.48922525]
[1747667062608,4.08000987,2451.0,2450.7,0.48922525]
[1747667062813,4.07989047,2451.1,2450.7,4.56967924]
[1747667063009,4.0806405,2450.6,2450.2,5.4140229]
[1747667063210,4.08071497,2450.6,2450.2,1.33273116]
[1747667063619,9.99,2450.7,2450.4,4.08082916]
[1747667063952,9.99,2450.7,2450.3,0.1305245]
[1747667064246,14.07055264,2450.7,2450.3,0.1305245]
[1747667064746,9.99,2450.7,2450.3,0.1305245]
[1747667065096,9.99,2450.7,2450.4,4.08096174]
[1747667065295,9.99,2450.7,2450.5,4.08077991]
[1747667065797,9.99,2450.7,2450.4,4.08089573]
[1747667066414,9.99,2450.7,2450.3,5.45277595]
[1747667066614,9.99,2450.7,2450.2,4.08119878]
[1747667066615,14.07052756,2450.7,2450.2,4.08119878]
[1747667066815,9.99,2450.7,2450.1,9.50548997]
[1747667067010,14.07053979,2450.7,2450.1,9.50548997]
[1747667067217,4.08066302,2450.6,2450.2,0.13051888]
[1747667067412,4.08077115,2450.6,2450.2,0.13051888]
[1747667067634,9.99,2450.7,2450.2,4.2118069]
[1747667067835,9.99,2450.7,2450.3,4.08113292]
[1747667068037,9.99,2450.7,2450.5,4.08079962]
[1747667068533,9.99,2450.7,2450.5,4.08078387]
[1747667068742,9.99,2451.1,2450.6,0.7835]
[1747667068916,9.99,2451.1,2450.6,9.1955]
[1747667069121,14.06982712,2451.1,2450.6,9.1955]
[1747667069444,9.99,2451.1,2450.6,8.412]
[1747667069629,31.63960892,2451.0,2450.2,0.12118265]
[1747667069933,4.08094603,2450.5,2450.2,0.12118265]
[1747667070143,4.08087755,2450.5,2450.2,0.12118265]
[1747667070306,31.63956965,2451.0,2450.2,0.12118265]
[1747667070507,27.5596,2451.0,2450.2,0.12118265]
[1747667070706,27.5596,2451.0,2450.2,4.08129948]
[1747667070910,27.5596,2451.0,2450.2,5.75171726]
[1747667071107,0.04106815,2450.9,2450.1,8.54152964]
[1747667071307,4.08092977,2450.5,2450.1,8.54152964]
[1747667071704,4.08092977,2450.5,2450.1,0.13052964]
[1747667071705,4.08129948,2450.2,2450.1,0.13052964]
[1747667071930,4.91149948,2450.2,2450.1,0.13052964]
[1747667072138,12.95256763,2450.2,2450.1,0.13052964]
[1747667072438,4.08179925,2449.9,2449.8,0.12118265]
[1747667072646,12.51779925,2449.9,2449.8,0.12118265]
[1747667072953,0.8302,2450.2,2449.8,0.12118265]
[1747667073355,0.8302,2450.2,2449.8,4.20305922]
[1747667073646,8.438,2450.3,2449.9,4.08171933]
[1747667073817,22.48207325,2450.4,2449.9,4.08166138]
[1747667073818,14.07096881,2450.4,2449.9,4.08166138]
[1747667074009,0.7611,2450.5,2450.0,4.08150101]
[1747667074010,13.28799283,2450.5,2450.0,4.08150101]
[1747667074315,4.08139656,2450.2,2449.9,0.13055264]
[1747667074533,4.08096637,2450.4,2449.9,0.13055264]
[1747667074837,4.08118826,2450.3,2449.9,0.13055264]
[1747667075031,4.08103595,2450.4,2449.9,4.21224233]
[1747667075339,4.08103595,2450.4,2450.0,0.13055264]
[1747667075845,9.2071,2450.5,2450.0,0.13055264]
[1747667076016,17.623,2451.1,2450.4,4.08086039]
[1747667076017,4.855229,2450.9,2450.4,4.08086039]
[1747667076215,8.44,2450.9,2450.5,4.08069946]
[1747667076821,12.52015976,2450.9,2450.5,4.08069946]
[1747667077021,4.080307,2450.8,2450.4,4.08094327]
[1747667077217,12.5201814,2450.9,2450.5,4.08075789]
[1747667077425,0.8054,2451.2,2450.7,4.08034777]
[1747667077613,4.88512916,2451.2,2450.7,4.08034777]
[1747667077814,4.07965414,2451.2,2450.7,0.8332]
[1747667078033,9.99,2451.1,2450.8,4.08020483]
[1747667078224,9.99,2451.3,2450.8,4.08020483]
[1747667078865,9.99,2451.3,2450.8,4.08022076]
[1747667079020,4.0797137,2451.2,2450.9,0.13055264]
[1747667079230,14.0695052,2451.3,2450.9,4.21067449]
[1747667079413,14.0695052,2451.3,2451.0,4.07984538]
[1747667079414,9.99,2451.3,2451.0,4.07984538]
[1747667079611,4.07903756,2451.6,2451.2,0.778]
[1747667079848,4.07907547,2451.6,2451.2,0.778]
[1747667080147,4.07936309,2451.4,2450.9,5.92742479]
[1747667080338,4.07922447,2451.5,2451.0,4.07995513]
[1747667080542,4.07931554,2451.4,2451.0,1.84326046]
[1747667080727,4.07920971,2451.5,2451.0,5.92314417]
[1747667080926,4.07904248,2451.6,2451.1,4.07978099]
[1747667081147,4.07885621,2451.7,2451.1,4.0798009]
[1747667081348,4.07860159,2451.9,2451.3,4.07930874]
[1747667081535,4.07860159,2451.9,2451.2,5.51295855]
[1747667081536,12.49058227,2451.9,2451.2,5.51299098]
[1747667081843,4.07865748,2451.8,2451.3,4.07938204]
[1747667082347,4.07873211,2451.8,2451.3,4.07946149]
[1747667082519,4.07882198,2451.7,2451.3,0.97231493]
[1747667082846,4.07835024,2452.0,2451.2,1.43340614]
[1747667083034,4.07933002,2451.4,2451.3,0.13055264]
[1747667084048,0.785,2451.6,2451.3,0.13055264]
[1747667084348,4.07921568,2451.5,2451.3,0.13055264]
[1747667084538,0.785,2451.6,2451.0,0.12118265]
[1747667084539,4.0795749,2451.3,2451.0,0.12118265]
[1747667084749,4.07970744,2451.2,2451.0,0.12118265]
[1747667085440,4.07970744,2451.2,2451.1,0.13049412]
[1747667087626,4.07994664,2451.1,2450.6,17.32838265]
[1747667087823,4.07970793,2451.2,2450.7,6.22137774]
[1747667088019,4.07930668,2451.4,2450.9,4.07997073]
[1747667088226,9.99,2451.3,2450.7,2.14091249]
[1747667088425,14.06932088,2451.4,2451.0,4.07986518]
[1747667088638,14.06932088,2451.4,2450.9,4.08004054]
[1747667088835,9.99,2451.4,2450.8,0.13048835]
[1747667089032,4.07977876,2451.2,2450.8,0.13048835]
[1747667089238,9.99,2451.4,2450.8,0.98504441]
[1747667089449,9.99,2451.4,2450.9,4.08004964]
[1747667089859,4.0797475,2451.2,2450.8,0.98504441]
[1747667090152,4.0797475,2451.2,2451.0,0.13048835]
[1747667090153,4.07981302,2451.1,2451.0,0.13048835]
[1747667091137,4.07981302,2451.1,2450.8,0.13048835]
[1747667091855,4.07986598,2451.1,2450.8,0.13048835]
[1747667092358,4.07997495,2451.0,2450.8,0.13048835]
[1747667092553,4.07982301,2451.1,2450.8,0.13048835]
[1747667092947,14.06982301,2451.1,2450.8,0.13048835]
[1747667094430,9.99,2451.1,2450.8,0.13048835]
[1747667094761,4.08013382,2450.9,2450.8,0.13048835]
[1747667094932,4.07988342,2451.1,2450.8,0.13048835]
[1747667095121,9.99,2451.2,2450.8,0.13048835]
[1747667095324,4.08013315,2451.0,2450.8,0.13048835]
[1747667095537,4.08013382,2450.9,2450.8,0.13048835]
[1747667096149,4.87696473,2451.0,2450.8,0.13048835]
[1747667096465,9.99,2451.2,2450.8,0.13048835]
[1747667096765,4.08010678,2451.0,2450.8,0.13048835]
[1747667097353,4.08010678,2451.0,2450.7,0.13048835]
[1747667097562,4.08003606,2451.0,2450.7,0.13048835]
[1747667097862,0.8324,2451.6,2451.0,4.07995779]
[1747667098047,0.8324,2451.6,2450.9,8.372]
[1747667098048,4.07923688,2451.5,2450.9,8.372]
[1747667098359,4.07913522,2451.5,2450.9,8.372]
[1747667098527,4.91141616,2451.6,2450.9,8.372]
[1747667098729,4.91141616,2451.6,2450.8,0.7882]
[1747667098730,4.07955681,2451.3,2450.8,4.86842414]
[1747667099064,4.07956862,2451.3,2450.8,13.24045565]
[1747667099259,0.8324,2451.6,2451.0,0.13048835]
[1747667099461,4.07870786,2451.8,2451.3,4.07943796]
[1747667099759,4.07870786,2451.8,2451.4,4.07928344]
[1747667099928,13.22668273,2452.0,2451.1,4.87354013]
[1747667099929,9.1483,2452.0,2451.1,4.87354013]
[1747667100138,0.04106815,2451.9,2451.1,0.7938]
[1747667100462,0.7583,2452.0,2451.2,0.13048835]
[1747667100673,9.99,2452.3,2451.8,4.07848964]
[1747667100875,4.07809782,2452.2,2451.7,4.87252188]
[1747667101156,10.7483,2452.4,2451.7,0.7938]
[1747667101374,4.0782217,2452.1,2451.7,0.7938]
[1747667101535,4.07805844,2452.2,2451.8,4.07863078]
[1747667101733,4.0781371,2452.1,2451.7,1.68897743]
[1747667101928,9.99,2452.4,2451.8,8.372]
[1747667102135,8.372,2453.0,2452.1,0.7602]
[1747667102337,4.07704466,2452.8,2452.1,0.7602]
[1747667102746,8.372,2453.0,2452.1,4.8382416]
[1747667102747,4.07719099,2452.7,2452.1,4.8382416]
[1747667102946,8.372,2453.0,2452.2,0.61431251]
[1747667102947,4.07738426,2452.6,2452.2,0.61431251]
[1747667103756,4.07750956,2452.5,2452.3,0.13048835]
[1747667103948,4.07735799,2452.6,2452.3,0.13048835]
[1747667104261,8.372,2453.0,2452.3,0.13048835]
[1747667104459,4.07725087,2452.7,2452.2,4.5617066]
[1747667104666,4.07739473,2452.6,2452.3,0.53219066]
[1747667104869,4.07714548,2452.7,2452.2,4.07788133]
[1747667105280,4.07686937,2452.9,2452.4,4.07753855]
[1747667105281,4.07691229,2452.9,2452.4,4.07753855]
[1747667105450,4.07669333,2453.0,2452.3,4.07766572]
[1747667105650,4.07664102,2453.0,2452.5,4.0773363]
[1747667105871,14.06652776,2453.1,2452.4,0.7735]
[1747667106077,4.07737972,2452.6,2452.4,0.7735]
[1747667106882,9.99,2453.1,2452.4,0.7735]
[1747667107088,4.07728262,2452.7,2452.4,0.7735]
[1747667107251,4.07666045,2453.0,2452.4,0.7735]
[1747667107447,4.0779708,2452.2,2452.1,0.8187]
[1747667107661,12.45636114,2452.6,2452.5,0.1304127]
[1747667107862,4.07730571,2452.6,2452.5,0.1304127]
[1747667108052,4.07730571,2452.6,2452.5,0.9196127]
[1747667108380,26.736,2453.1,2452.5,0.9196127]
[1747667108580,4.07687722,2452.9,2452.5,0.9196127]
[1747667108782,4.07674707,2453.0,2452.6,0.49971175]
[1747667109389,4.07681594,2452.9,2452.6,0.49971175]
[1747667109590,4.07690857,2452.9,2452.6,0.49971175]
[1747667109901,4.07670582,2453.0,2452.6,0.49971175]
[1747667110207,4.07688652,2452.9,2452.5,0.7892]
[1747667110581,4.07690293,2452.9,2452.5,0.7892]
[1747667111170,4.07690293,2452.9,2452.6,0.13040071]
[1747667111466,4.07689361,2452.9,2452.6,0.13040071]
[1747667111919,4.07704006,2452.8,2452.6,0.13040071]
[1747667112079,4.07689361,2452.9,2452.6,0.13040071]
[1747667112264,4.07698991,2452.8,2452.6,0.63012122]
[1747667112609,4.07713947,2452.7,2452.6,0.13040071]
[1747667112896,0.04106815,2453.2,2452.3,8.408]
[1747667112897,4.07763823,2452.4,2452.3,8.408]
[1747667113110,4.07780451,2452.3,2451.9,0.7881]
[1747667113311,4.0779708,2452.2,2451.8,0.16125564]
[1747667113482,4.8784708,2452.2,2451.8,0.16125564]
[1747667114068,12.91953895,2452.2,2451.8,0.16125564]
[1747667114419,16.63845117,2452.2,2451.8,0.16125564]
[1747667115085,12.8319708,2452.2,2451.8,0.16125564]
[1747667115483,29.5989708,2452.2,2451.8,0.16125564]
[1747667115808,21.5999708,2452.2,2451.8,0.16125564]
[1747667116165,8.405,2452.4,2451.5,4.07902477]
[1747667116371,4.07839968,2452.0,2451.6,0.46290248]
[1747667116797,4.07812958,2452.2,2451.6,4.54185855]
[1747667116798,4.07809731,2452.2,2451.6,4.54185855]
[1747667117001,4.07814214,2452.1,2451.7,0.7982]
[1747667117181,8.402,2452.3,2451.7,0.7982]
[1747667117386,4.07826611,2452.1,2451.7,0.7982]
[1747667117599,4.0782103,2452.1,2451.7,2.54011127]
[1747667117808,8.402,2452.3,2451.7,0.7982]
[1747667118117,4.0795543,2451.3,2451.1,0.8197]
[1747667118306,4.07913806,2451.5,2451.1,4.89940718]
[1747667118512,0.8081,2452.6,2451.4,0.83]
[1747667118711,8.0,2452.5,2451.4,0.83]
[1747667118871,4.07829304,2452.1,2451.4,0.83]
[1747667119073,4.07829304,2452.1,2451.6,4.07894509]
[1747667119512,17.6061,2452.6,2451.5,0.883]
[1747667119513,9.1771,2452.6,2451.5,0.883]
[1747667119671,8.369,2452.6,2452.0,4.85282824]
[1747667119872,8.369,2452.6,2452.0,0.7746]
[1747667120185,4.07801006,2452.2,2452.0,0.7746]
[1747667120391,4.07784579,2452.3,2452.0,0.7746]
[1747667120591,4.07798864,2452.2,2452.0,0.7746]
[1747667120915,8.369,2452.6,2452.0,0.7746]
[1747667120916,4.07787883,2452.3,2452.0,0.7746]
[1747667121115,4.0781371,2452.1,2452.0,0.7746]
[1747667121305,4.07787883,2452.3,2452.0,0.7746]
[1747667121306,4.07787739,2452.3,2452.0,0.7746]
[1747667121504,4.07773832,2452.4,2452.0,0.7746]
[1747667121820,4.07705531,2452.8,2452.3,4.07779522]
[1747667121986,4.07698867,2452.8,2452.3,4.07780451]
[1747667122197,12.534876,2452.9,2452.4,0.8115]
[1747667122383,8.458,2452.9,2452.4,0.8115]
[1747667122716,4.076849,2452.9,2452.4,1.30043424]
[1747667122916,4.07724384,2452.7,2452.4,0.8115]
[1747667123115,4.07747196,2452.5,2452.4,0.8115]
[1747667123520,4.07747196,2452.5,2452.1,0.7707]
[1747667123521,4.07762786,2452.5,2452.1,0.7707]
[1747667123677,9.1455,2453.0,2452.1,5.33362865]
[1747667124005,4.07739623,2452.6,2452.2,4.07796337]
[1747667124210,4.07739623,2452.6,2452.1,1.25560365]
[1747667124211,8.368,2452.9,2452.1,1.25560365]
[1747667124409,4.07707295,2452.8,2452.2,4.0779708]
[1747667124586,4.07689276,2452.9,2452.4,4.07755785]
[1747667124788,4.07689276,2452.9,2452.3,12.07767773]
[1747667124789,8.45,2453.1,2452.3,4.07777293]
[1747667124994,4.07691174,2452.9,2452.4,4.07762041]
[1747667125316,8.45,2453.1,2452.4,0.43292086]
[1747667125519,4.07741525,2452.6,2452.2,0.25158817]
[1747667125719,9.99,2453.0,2452.2,0.25158817]
[1747667125922,9.99,2453.0,2452.2,5.67482681]
[1747667125923,4.07744573,2452.6,2452.2,5.67482681]
[1747667126132,4.07713224,2452.8,2452.2,5.67482681]
[1747667126279,4.07682323,2452.9,2452.5,4.07744264]
[1747667126623,9.99,2453.0,2452.4,0.766]
[1747667126935,4.07689086,2452.9,2452.4,0.766]
[1747667127138,4.0772282,2452.7,2452.4,0.766]
[1747667127487,4.07730656,2452.6,2452.4,0.766]
[1747667127738,9.99,2453.0,2452.4,0.766]
[1747667127907,18.439,2453.0,2452.5,0.13040552]
[1747667128106,4.07687522,2452.9,2452.5,0.13040552]
[1747667128319,4.07647979,2453.1,2452.6,4.85109833]
[1747667128511,4.07691035,2452.9,2452.7,0.9058915]
[1747667128845,10.99,2453.4,2452.6,0.7739]
[1747667129014,8.455,2453.3,2452.8,0.13040552]
[1747667129221,4.07680704,2452.9,2452.8,0.13040552]
[1747667131642,4.07667754,2453.0,2452.8,0.13040552]
[1747667132132,4.07680704,2452.9,2452.8,0.13040552]
[1747667132337,4.07701963,2452.8,2452.6,0.7739]
[1747667132696,4.07701963,2452.8,2452.6,1.27117134]
[1747667133097,4.07703726,2452.8,2452.6,0.7739]
[1747667133351,4.07690069,2452.9,2452.6,0.7739]
[1747667133642,4.07713947,2452.7,2452.6,0.7739]
[1747667133798,9.2641,2453.3,2452.7,0.13040785]
[1747667133799,4.07666117,2453.0,2452.7,0.13040785]
[1747667133998,4.07656124,2453.1,2452.7,4.70569186]
[1747667134335,4.07656124,2453.1,2452.7,0.62856465]
[1747667134531,4.07696292,2452.9,2452.7,0.13040785]
[1747667134716,4.07672547,2453.0,2452.7,0.13040785]
[1747667134916,4.07672547,2453.0,2452.6,0.7739]
[1747667134917,4.07672547,2453.0,2452.8,0.13040785]
[1747667135123,4.07680704,2452.9,2452.8,0.13040785]
[1747667135496,4.07631342,2453.2,2452.8,0.13040785]
[1747667135497,4.07637597,2453.2,2452.8,0.13040785]
[1747667135722,4.07638601,2453.2,2452.8,0.13040785]
[1747667135999,12.52424078,2453.3,2452.9,4.07679219]
[1747667136242,18.419,2453.4,2452.9,0.13040785]
[1747667136470,18.419,2453.4,2452.9,4.20717128]
[1747667136600,4.07615613,2453.3,2452.9,0.13040785]
[1747667136801,4.07641796,2453.2,2452.9,0.13040785]
[1747667137002,18.419,2453.4,2453.0,0.13040785]
[1747667137903,8.414,2453.3,2453.0,0.13040785]
[1747667139253,8.414,2453.3,2452.6,0.7739]
[1747667139437,8.414,2453.3,2452.6,1.70730827]
[1747667139743,8.398,2453.3,2452.6,1.70730827]
[1747667140050,9.99,2453.4,2452.6,1.70730827]
[1747667140236,8.396,2453.3,2452.6,1.70730827]
[1747667140410,8.396,2453.3,2452.7,0.13038872]
[1747667141145,18.429,2453.4,2452.7,0.13038872]
[1747667141346,8.386,2453.3,2452.7,0.13038872]
[1747667141553,18.373,2453.4,2452.7,0.13038872]
[1747667141762,18.373,2453.4,2452.8,0.13038872]
[1747667142447,16.815,2453.3,2452.8,0.13038872]
[1747667143061,0.833,2453.1,2452.7,0.13038872]
[1747667143268,10.03106815,2453.0,2452.7,0.13038872]
[1747667143550,9.3526,2452.8,2452.7,0.13038872]
[1747667143753,26.1836,2452.8,2452.7,0.13038872]
[1747667144757,0.8026,2453.0,2452.7,0.13038872]
[1747667144923,16.385,2452.9,2452.7,0.13038872]
[1747667145349,8.385,2452.9,2452.2,5.42323864]
[1747667145641,8.385,2452.9,2452.3,0.61885386]
[1747667146050,0.7969,2453.3,2452.3,0.65963119]
[1747667146254,9.2159,2453.3,2452.4,0.7507]
[1747667146627,8.0,2453.2,2452.4,0.7507]
[1747667146828,8.0,2453.2,2452.5,0.13040658]
[1747667147665,8.447,2453.1,2452.5,0.13040658]
[1747667148663,8.447,2453.1,2452.6,0.13040658]
[1747667148838,8.0,2453.4,2452.6,0.13040658]
[1747667149044,8.436,2453.3,2452.6,0.13040658]
[1747667149564,9.99,2453.2,2452.6,0.13040658]
[1747667149762,9.99,2453.2,2452.7,0.88080658]
[1747667150070,9.99,2453.3,2452.7,0.88080658]
[1747667150368,8.427,2453.4,2452.7,0.88080658]
[1747667150533,18.43,2453.5,2452.7,0.88080658]
[1747667150845,26.855,2453.5,2452.8,0.88808066]
[1747667151259,26.855,2453.5,2452.9,0.25158923]
[1747667151565,26.847,2453.5,2452.9,0.25158923]
[1747667152251,0.7743,2453.4,2452.9,0.25158923]
[1747667152450,0.81536815,2453.4,2453.0,0.13039609]
[1747667152650,0.7743,2453.4,2453.0,0.13039609]
[1747667153462,8.81536815,2453.4,2453.0,0.13039609]
[1747667153770,3.06365316,2453.1,2453.0,0.13039609]
[1747667153931,22.44782131,2453.1,2453.0,0.13039609]
[1747667154139,22.40675316,2453.1,2453.0,0.13039609]
[1747667154341,40.01275316,2453.1,2453.0,0.13039609]
[1747667154542,0.55,2453.0,2452.2,5.42323864]
[1747667154877,8.0,2452.8,2452.2,5.42323864]
[1747667155246,0.7754,2452.7,2452.2,5.42323864]
[1747667155453,8.0,2452.8,2452.2,5.42323864]
[1747667155875,8.396,2452.7,2452.2,5.42323864]
[1747667157084,0.04106815,2452.6,2452.2,5.42323864]
[1747667157301,0.7579,2452.5,2452.2,5.42323864]
[1747667157446,9.99,2452.6,2452.2,5.42323864]
[1747667157971,9.99,2452.6,2452.2,6.17683864]
[1747667158142,9.99,2452.6,2452.2,5.42323864]
[1747667158143,0.7579,2452.5,2452.2,5.42323864]
[1747667158343,8.399,2452.4,2452.2,5.42323864]
[1747667160310,11.50372131,2452.4,2452.2,5.42323864]
[1747667160493,11.46265316,2452.4,2452.2,5.42323864]
[1747667160853,0.7547,2452.2,2451.6,5.73910425]
[1747667161165,0.7547,2451.8,2451.6,5.73910425]
[1747667161389,19.46365316,2451.7,2451.6,5.73910425]
[1747667161581,24.03041452,2451.7,2451.6,5.73910425]
[1747667162876,1.07190165,2452.2,2451.6,5.73910425]
[1747667163085,4.56676136,2452.8,2451.6,6.32914024]
[1747667163086,8.386,2452.1,2451.6,6.32914024]
[1747667163257,8.386,2452.1,2451.7,0.8323]
[1747667163458,8.386,2452.1,2451.7,0.87308557]
[1747667163671,8.386,2452.1,2451.7,0.8323]
[1747667163994,8.386,2452.1,2451.8,0.70470244]
[1747667164153,8.386,2452.1,2451.7,0.8323]
[1747667165067,8.4,2452.4,2451.7,0.8323]
[1747667166182,17.612,2453.6,2451.9,0.761]
[1747667166386,8.401,2453.1,2452.0,0.80177467]
[1747667166691,0.34154521,2453.0,2452.2,0.761]
[1747667166895,8.401,2453.1,2452.2,0.761]
[1747667167213,3.51390441,2453.5,2452.2,0.761]
[1747667167367,11.91190441,2453.5,2452.4,0.7629]
[1747667167565,8.0,2453.4,2452.5,0.91639]
[1747667167800,8.0,2453.4,2452.6,0.13043494]
[1747667168104,16.402,2453.4,2452.6,0.13043494]
[1747667168862,20.46810995,2453.4,2452.6,0.13043494]
[1747667169063,0.55,2453.3,2452.6,0.13043494]
[1747667169264,8.0,2453.1,2452.6,0.13043494]
[1747667170573,8.0,2453.1,2452.4,0.7629]
[1747667173203,8.04106815,2453.1,2452.4,0.7629]
[1747667173706,8.0,2453.1,2452.4,0.7629]
[1747667174065,4.56676136,2453.0,2452.4,0.7629]
[1747667174294,8.385,2452.9,2452.4,0.7629]
[1747667174679,4.56676136,2453.0,2452.5,0.04077286]
[1747667174882,4.56676136,2453.0,2452.4,0.7629]
[1747667177309,11.51705309,2453.5,2452.2,8.0]
[1747667177310,7.77116294,2453.5,2452.5,0.55]
[1747667177512,8.372,2453.4,2452.6,0.7657]
[1747667178575,8.372,2453.4,2452.7,0.13038776]
[1747667179026,12.60782951,2453.3,2452.7,0.13038776]
[1747667179302,12.56676136,2453.3,2452.7,0.13038776]
[1747667179506,16.772,2453.2,2452.7,0.13038776]
[1747667179894,12.56676136,2453.3,2452.6,0.7657]
[1747667180096,8.371,2453.1,2452.6,0.7657]
[1747667180286,4.07713947,2452.7,2452.6,0.7657]
[1747667181373,4.07730571,2452.6,2452.5,0.11441589]
[1747667181671,4.07730571,2452.6,2452.3,0.97975564]
[1747667181672,4.07763823,2452.4,2452.3,0.8185]
[1747667181897,4.07751982,2452.5,2452.3,0.8185]
[1747667182695,4.07763823,2452.4,2452.3,0.8185]
[1747667184407,4.07735029,2452.6,2452.3,0.8185]
[1747667184613,4.07750008,2452.5,2452.3,0.8185]
[1747667184925,4.07745825,2452.6,2452.3,0.8185]
[1747667185071,4.07730571,2452.6,2452.3,0.8185]
[1747667185273,8.371,2452.7,2452.3,0.8185]
[1747667185480,4.56676136,2452.9,2452.3,1.30815601]
[1747667185712,4.56676136,2452.9,2452.6,0.7827]
[1747667185713,8.64357365,2452.9,2452.6,0.7827]
[1747667185917,4.56676136,2452.9,2452.6,4.8599171]
[1747667186132,4.56676136,2453.4,2452.7,0.7827]
[1747667186282,8.64286414,2453.4,2453.0,0.7548]
[1747667186479,8.64286414,2453.4,2453.0,1.23794427]
[1747667186679,8.64284676,2453.4,2453.0,1.23794427]
[1747667186879,4.56676136,2453.4,2453.1,0.13041846]
[1747667187279,4.56676136,2453.4,2453.3,0.7932]
[1747667187501,4.07584317,2453.5,2453.3,0.7932]
[1747667188118,4.07597619,2453.4,2453.3,0.7932]
[1747667190189,4.07697325,2452.8,2452.7,0.11441589]
[1747667190393,4.1180414,2452.8,2452.7,0.11441589]
[1747667190600,4.07697325,2452.8,2452.7,0.11441589]
[1747667191696,4.07748735,2452.5,2452.2,0.7726]
[1747667192235,4.56676136,2452.8,2452.2,0.7726]
[1747667192236,4.07780451,2452.3,2452.2,0.7726]
[1747667192398,4.07755902,2452.5,2452.2,0.7726]
[1747667192600,4.56676136,2452.8,2452.3,4.07777993]
[1747667192910,8.64385084,2452.8,2452.4,4.8758032]
[1747667193429,8.64385084,2452.8,2452.5,0.13040454]
[1747667194324,4.07715252,2452.7,2452.5,0.13040454]
[1747667194487,4.07730571,2452.6,2452.5,0.13040454]
[1747667194884,8.64406707,2452.6,2452.5,0.13040454]
[1747667195192,9.19406707,2452.6,2452.5,0.13040454]
[1747667195588,4.0781371,2452.1,2451.8,0.7953]
[1747667196012,12.46102596,2452.2,2451.8,0.7953]
[1747667196213,8.383,2452.2,2451.8,2.26450931]
[1747667196421,4.07820583,2452.1,2451.8,0.7953]
[1747667196660,12.46102735,2452.2,2451.8,0.7953]
[1747667196818,13.77176136,2452.2,2451.7,0.11441589]
[1747667197131,12.94976136,2452.2,2451.7,0.11441589]
[1747667197330,4.07859734,2451.9,2451.7,0.11441589]
[1747667197529,4.0785492,2451.9,2451.7,0.24487328]
[1747667197689,8.4,2452.6,2451.8,0.8135]
[1747667197890,8.4,2452.6,2451.8,9.1845]
[1747667198226,4.07825671,2452.1,2451.8,9.1845]
[1747667198403,4.07773537,2452.4,2451.8,13.26297732]
[1747667198606,4.07773537,2452.4,2451.9,5.42915571]
[1747667198805,4.07773537,2452.4,2451.9,5.42917138]
[1747667199202,4.07752335,2452.5,2452.0,4.07821351]
[1747667199405,8.437,2452.7,2452.1,0.8268]
[1747667199728,4.07749088,2452.5,2452.1,0.8268]
[1747667200040,4.07722894,2452.7,2452.2,4.07782413]
[1747667200251,4.07714214,2452.7,2452.3,0.13045739]
[1747667200809,4.07763054,2452.5,2452.3,0.13045739]
[1747667201009,4.07760427,2452.5,2452.3,0.13045739]
[1747667201227,4.07763823,2452.4,2452.3,0.13045739]
[1747667202921,0.8115,2452.7,2452.3,0.13045739]
[1747667202922,4.07713947,2452.7,2452.3,0.13045739]
[1747667203120,4.0775036,2452.5,2452.3,0.63397831]
[1747667203436,4.07729759,2452.7,2452.3,0.13045739]
[1747667203633,4.07729759,2452.7,2452.4,0.13045739]
[1747667203830,5.33986136,2453.3,2452.5,0.7762]
[1747667204014,4.07689479,2452.9,2452.5,0.7762]
[1747667204204,4.07689479,2452.9,2452.5,1.68239803]
[1747667204620,8.425,2453.2,2452.5,1.68239803]
[1747667204844,4.07696447,2452.9,2452.5,0.7762]
[1747667205144,5.33986136,2453.3,2452.5,4.8535599]
[1747667205328,4.07671588,2453.0,2452.5,4.8535599]
[1747667205535,4.07671588,2453.0,2452.6,4.07730545]
[1747667205738,4.07671588,2453.0,2452.6,0.13045739]
[1747667205932,4.07651481,2453.1,2452.6,1.04806113]
[1747667206140,4.56676136,2453.3,2452.7,9.1989]
[1747667206307,4.56676136,2453.3,2453.0,4.07655454]
[1747667206508,4.56676136,2453.3,2452.9,4.07673065]
[1747667206703,4.56676136,2453.3,2453.0,0.89815707]
[1747667207152,4.07630849,2453.2,2453.1,0.13045739]
[1747667207746,4.56676136,2453.3,2453.1,0.13045739]
[1747667207955,8.64290707,2453.3,2453.1,0.13045739]
[1747667208536,8.64290707,2453.3,2453.2,0.13045739]
[1747667210022,17.06290707,2453.3,2453.2,0.13045739]
[1747667210737,4.07654105,2453.1,2452.8,0.11441589]
[1747667210933,4.07680704,2452.9,2452.8,0.11441589]
[1747667211239,12.98676136,2453.3,2452.8,0.11441589]
[1747667211441,4.07676105,2453.0,2452.8,0.11441589]
[1747667211750,4.07666672,2453.0,2452.8,0.11441589]
[1747667211950,4.07630849,2453.2,2452.8,0.11441589]
[1747667212152,4.07648382,2453.1,2452.8,0.11441589]
[1747667212357,4.07662584,2453.1,2452.8,0.11441589]
[1747667212667,4.07664101,2453.0,2452.8,0.11441589]
[1747667212840,4.07658505,2453.1,2452.7,0.13039888]
[1747667213173,4.07681495,2452.9,2452.7,0.13039888]
[1747667213328,4.07697325,2452.8,2452.7,0.13039888]
[1747667213522,4.07681495,2452.9,2452.7,0.13039888]
[1747667213523,4.07689449,2452.9,2452.7,0.13039888]
[1747667213759,4.07659061,2453.1,2452.7,0.13039888]
[1747667213967,4.07676611,2453.0,2452.8,0.13039888]
[1747667214260,4.07680704,2452.9,2452.8,0.13039888]
[1747667215026,9.50953655,2452.9,2452.8,0.13039888]
[1747667215223,10.0184684,2452.9,2452.8,0.13039888]
[1747667215841,4.07717837,2452.7,2452.0,0.11441589]
[1747667216048,4.07747196,2452.5,2452.0,1.01865073]
[1747667216367,4.0781371,2452.1,2452.0,0.11441589]
[1747667218073,12.4871371,2452.1,2452.0,0.11441589]
[1747667218247,4.07880246,2451.7,2451.6,5.62468836]
[1747667218683,4.07869935,2451.8,2451.6,5.62468836]
[1747667219136,4.07871375,2451.8,2451.7,0.13045973]
[1747667219342,4.0785412,2451.9,2451.7,0.13045973]
[1747667219542,4.56676136,2452.2,2451.7,0.70597454]
[1747667219737,8.413,2452.6,2451.9,4.07837509]
[1747667219738,8.64426965,2452.5,2451.9,4.07837509]